bitfinex/quotes_BTCUSD_20250303
["timestamp","ask_amount","ask_price","bid_price","bid_amount"]
[1740974398807,0.47039,92917.0,92916.0,0.00014272]
[1740974399846,0.3254408,92917.0,92916.0,0.00014272]
[1740974400016,0.32680666,92917.0,92916.0,0.00014272]
[1740974400268,0.3254408,92917.0,92916.0,0.00014272]
[1740974400458,0.32680666,92917.0,92916.0,0.00014272]
[1740974402369,0.47209666,92917.0,92916.0,0.00014272]
[1740974403983,0.55419666,92917.0,92916.0,0.00014272]
[1740974404229,0.32680666,92917.0,92916.0,0.00014272]
[1740974404463,0.32680666,92917.0,92916.0,0.14543472]
[1740974404983,0.3254408,92917.0,92916.0,0.14543472]
[1740974405195,0.0013408,92917.0,92916.0,0.44543472]
[1740974406119,0.0023408,92917.0,92916.0,0.44543472]
[1740974406517,0.0023408,92917.0,92916.0,0.33238681]
[1740974406717,0.0013408,92917.0,92916.0,0.33238681]
[1740974407140,0.14799666,92917.0,92916.0,0.03438681]
[1740974407597,0.1498801,92917.0,92916.0,0.00214272]
[1740974408039,0.00270666,92917.0,92916.0,0.00014272]
[1740974408257,0.14799666,92917.0,92916.0,0.00014272]
[1740974408479,0.14899666,92917.0,92916.0,0.00014272]
[1740974408683,0.14699666,92917.0,92916.0,0.00014272]
[1740974408884,0.00170666,92917.0,92916.0,0.00114272]
[1740974409507,0.00170666,92917.0,92916.0,0.00014272]
[1740974409972,0.14699666,92917.0,92916.0,0.00114272]
[1740974410165,0.17162321,92917.0,92916.0,0.00114272]
[1740974410832,0.17062321,92917.0,92916.0,0.00114272]
[1740974411035,0.49472321,92917.0,92916.0,0.00114272]
[1740974411277,0.34854969,92917.0,92916.0,0.00114272]
[1740974411479,0.34754969,92917.0,92916.0,0.00114272]
[1740974411675,0.49283969,92917.0,92916.0,0.00014272]
[1740974411882,0.49483969,92917.0,92916.0,0.00014272]
[1740974412099,0.49283969,92917.0,92916.0,0.00014272]
[1740974412595,0.34737177,92917.0,92916.0,0.14543472]
[1740974412733,0.34737177,92917.0,92916.0,0.00114272]
[1740974413201,0.34715802,92917.0,92916.0,0.00014272]
[1740974413345,0.34786068,92917.0,92916.0,0.00014272]
[1740974413551,0.34656334,92917.0,92916.0,0.00114272]
[1740974413753,0.34656334,92917.0,92909.0,0.14212632]
[1740974414114,0.00136586,92910.0,92907.0,0.150305]
[1740974414314,0.00136586,92910.0,92907.0,0.150306]
[1740974414523,0.00124765,92908.0,92907.0,0.150306]
[1740974415359,0.00124765,92909.0,92908.0,0.145305]
[1740974415564,0.34519748,92917.0,92908.0,0.145305]
[1740974415565,0.34519748,92917.0,92916.0,0.145292]
[1740974415761,0.00124765,92908.0,92907.0,0.005]
[1740974415984,0.00224765,92908.0,92907.0,0.151306]
[1740974416185,0.00224765,92908.0,92907.0,0.006]
[1740974416406,0.00124765,92908.0,92907.0,0.005]
[1740974416610,5.466e-05,92908.0,92907.0,0.005]
[1740974417013,0.14517074,92915.0,92907.0,0.005]
[1740974417482,0.145305,92908.0,92907.0,0.005]
[1740974417835,0.14718868,92908.0,92907.0,0.005]
[1740974418251,0.00188368,92908.0,92907.0,0.005]
[1740974418452,0.145305,92908.0,92907.0,0.005]
[1740974419023,0.00146692,92909.0,92907.0,0.005]
[1740974419225,0.34519748,92917.0,92907.0,0.005]
[1740974419436,0.001,92908.0,92907.0,0.005]
[1740974419838,0.00188366,92916.0,92907.0,0.005]
[1740974420053,0.3241,92917.0,92916.0,0.145292]
[1740974420575,0.32389222,92917.0,92909.0,0.193737]
[1740974420809,0.32389222,92917.0,92907.0,0.305]
[1740974421189,0.32329627,92917.0,92907.0,0.005]
[1740974421310,0.32329627,92917.0,92907.0,0.03724409]
[1740974421510,0.32329627,92917.0,92916.0,0.145292]
[1740974422386,0.32324373,92917.0,92916.0,0.145292]
[1740974422602,0.32324373,92917.0,92910.0,0.03224409]
[1740974423008,0.00188346,92916.0,92910.0,0.03224409]
[1740974423239,0.145294,92915.0,92910.0,0.03224409]
[1740974423437,0.14557629,92915.0,92910.0,0.03224409]
[1740974423727,0.0003408,92915.0,92907.0,0.0051704]
[1740974423925,0.0003408,92915.0,92908.0,0.0965069]
[1740974424274,0.145296,92914.0,92908.0,0.0965069]
[1740974424475,0.145298,92913.0,92908.0,0.0965069]
[1740974424707,0.1940678,92915.0,92908.0,0.0965069]
[1740974425116,0.0003408,92915.0,92908.0,0.3965069]
[1740974425313,0.0003408,92915.0,92909.0,0.193737]
[1740974425525,0.0003408,92915.0,92914.0,0.145295]
[1740974426471,0.0003408,92915.0,92912.0,0.145297]
[1740974426669,0.0003408,92915.0,92911.0,0.1453]
[1740974426871,0.193727,92914.0,92907.0,0.3051704]
[1740974427049,0.08418357,92913.0,92907.0,0.3051704]
[1740974427250,0.227598,92913.0,92907.0,0.3051704]
[1740974427459,0.0823,92913.0,92907.0,0.3051704]
[1740974427830,0.14386071,92911.0,92907.0,0.0051704]
[1740974428260,0.00188359,92912.0,92907.0,0.0051704]
[1740974428461,0.145302,92910.0,92907.0,0.0051704]
[1740974429040,0.0823,92913.0,92907.0,0.0051704]
[1740974429463,0.00188359,92912.0,92907.0,0.0051704]
[1740974429843,0.145305,92908.0,92907.0,0.0051704]
[1740974431307,0.00188359,92909.0,92907.0,0.0051704]
[1740974431500,0.00188363,92912.0,92907.0,0.0051704]
[1740974431854,0.05038363,92916.0,92914.0,0.145295]
[1740974432055,0.0485,92916.0,92908.0,0.193739]
[1740974432491,0.0485,92916.0,92914.0,0.145295]
[1740974433161,0.0812,92925.0,92914.0,0.145295]
[1740974433301,4.343e-05,92915.0,92914.0,0.145295]
[1740974434559,0.00104343,92915.0,92914.0,0.145295]
[1740974434989,0.00104343,92915.0,92914.0,0.445295]
[1740974435192,4.343e-05,92915.0,92914.0,0.522595]
[1740974435313,4.343e-05,92915.0,92914.0,0.60714922]
[1740974435521,0.0003408,92932.0,92931.0,0.523769]
[1740974435714,0.00038094,92932.0,92931.0,0.523769]
[1740974435919,0.00038094,92932.0,92931.0,1.103111]
[1740974436126,0.00038094,92932.0,92931.0,1.309205]
[1740974436339,0.00038094,92932.0,92931.0,1.113087]
[1740974436558,0.00038094,92932.0,92931.0,1.006754]
[1740974436958,0.00038094,92932.0,92931.0,0.995615]
[1740974437382,0.00138094,92932.0,92931.0,0.995615]
[1740974438303,0.00132243,92932.0,92931.0,0.995615]
[1740974438478,0.00232243,92932.0,92931.0,0.995615]
[1740974438671,0.00132243,92932.0,92931.0,0.995615]
[1740974438870,0.00032243,92932.0,92931.0,0.995615]
[1740974439212,0.00132243,92932.0,92931.0,0.996615]
[1740974439644,0.00232243,92932.0,92931.0,1.15545202]
[1740974440391,1e-08,92933.0,92932.0,0.495267]
[1740974440593,1e-08,92933.0,92932.0,0.60410402]
[1740974441878,0.00100001,92933.0,92932.0,0.60410402]
[1740974442239,0.00200001,92933.0,92932.0,0.60510402]
[1740974442877,0.00200001,92933.0,92932.0,5.32581902]
[1740974443079,0.00200001,92933.0,92932.0,5.22878402]
[1740974443358,0.00200001,92933.0,92932.0,4.57757902]
[1740974443737,0.00200001,92933.0,92932.0,4.90287128]
[1740974444008,0.15284263,92954.0,92934.0,0.05]
[1740974444220,0.15291191,92954.0,92953.0,0.445234]
[1740974444800,0.15291191,92954.0,92953.0,0.45621926]
[1740974445322,0.15291191,92954.0,92953.0,0.45821926]
[1740974445686,0.15391191,92954.0,92953.0,0.45821926]
[1740974446241,0.15291191,92954.0,92953.0,0.45821926]
[1740974446654,0.15391191,92954.0,92953.0,0.46121926]
[1740974446882,0.15391191,92954.0,92953.0,0.31598526]
[1740974446997,0.15391191,92954.0,92953.0,0.305]
[1740974447730,0.15391191,92954.0,92953.0,0.005]
[1740974448068,0.29914491,92954.0,92953.0,0.003]
[1740974448476,0.17490706,92954.0,92953.0,0.002]
[1740974448672,0.15291191,92954.0,92953.0,0.145234]
[1740974448875,0.15291191,92954.0,92953.0,0.003]
[1740974449123,0.15291191,92954.0,92953.0,0.004]
[1740974449334,6.928e-05,92954.0,92953.0,0.001]
[1740974449501,6.928e-05,92954.0,92942.0,0.3]
[1740974449680,6.928e-05,92954.0,92953.0,0.002]
[1740974450157,0.0804,92953.0,92931.0,0.07624]
[1740974450355,0.00188274,92952.0,92931.0,0.07624]
[1740974450621,0.0804,92953.0,92931.0,0.07624]
[1740974450795,0.0804,92953.0,92936.0,0.14526]
[1740974450996,0.0804,92953.0,92935.0,0.145262]
[1740974451196,0.0804,92953.0,92939.0,0.145256]
[1740974451446,0.0804,92953.0,92933.0,0.3]
[1740974451825,0.0804,92953.0,92931.0,0.28156769]
[1740974452011,0.0804,92953.0,92938.0,0.145258]
[1740974452208,0.0804,92953.0,92932.0,0.3]
[1740974452407,0.02162004,92951.0,92931.0,0.08687769]
[1740974452613,0.02162004,92951.0,92939.0,0.001]
[1740974452614,0.048,92949.0,92939.0,0.001]
[1740974452816,0.00188292,92948.0,92939.0,0.001]
[1740974453216,0.145248,92945.0,92939.0,0.001]
[1740974453445,0.00188292,92945.0,92939.0,0.001]
[1740974453949,0.048,92949.0,92933.0,0.003]
[1740974454160,0.145247,92945.0,92938.0,0.001]
[1740974454367,0.00188292,92947.0,92938.0,0.001]
[1740974454663,0.193661,92946.0,92933.0,0.003]
[1740974454807,0.145248,92944.0,92931.0,0.01078409]
[1740974455006,0.19554692,92945.0,92923.0,0.3]
[1740974455313,0.00188292,92945.0,92939.0,0.005]
[1740974455508,0.145245,92946.0,92925.0,0.445278]
[1740974456128,0.001,92944.0,92931.0,0.003]
[1740974456323,0.001,92944.0,92937.0,0.145259]
[1740974456554,0.048,92949.0,92922.0,0.09511088]
[1740974456767,0.001,92946.0,92925.0,0.003]
[1740974456942,0.001,92946.0,92931.0,0.002]
[1740974457142,0.001,92946.0,92925.0,0.003]
[1740974457344,0.001,92946.0,92929.0,0.3]
[1740974457544,0.001,92946.0,92937.0,0.002]
[1740974457748,0.001,92946.0,92929.0,0.3]
[1740974457944,0.145247,92945.0,92929.0,0.3]
[1740974458146,0.001,92946.0,92931.0,0.002]
[1740974458365,0.145247,92945.0,92925.0,0.003]
[1740974458691,0.145247,92945.0,92923.0,0.445281]
[1740974458692,0.145248,92945.0,92937.0,0.002]
[1740974458914,0.001,92944.0,92937.0,0.005]
[1740974459387,0.00188284,92948.0,92937.0,0.002]
[1740974459587,0.001,92945.0,92937.0,0.002]
[1740974459945,0.001,92945.0,92929.0,0.493695]
[1740974460148,0.048,92949.0,92932.0,0.3]
[1740974460361,0.001,92944.0,92937.0,0.003]
[1740974460959,0.0811,92943.0,92937.0,0.005]
[1740974461164,0.0811,92943.0,92937.0,0.003]
[1740974461705,0.0811,92943.0,92937.0,0.002]
[1740974461879,0.0811,92943.0,92929.0,0.003]
[1740974462091,0.001,92945.0,92942.0,0.145251]
[1740974462253,0.048,92949.0,92942.0,0.145251]
[1740974462453,0.048,92949.0,92940.0,0.145255]
[1740974462655,0.001,92943.0,92939.0,0.193673]
[1740974462865,0.001,92943.0,92937.0,0.003]
[1740974463069,0.001,92943.0,92937.0,0.005]
[1740974463565,0.001,92943.0,92927.0,0.3]
[1740974463771,0.145244,92947.0,92939.0,0.002]
[1740974463981,0.241656,92949.0,92927.0,0.3]
[1740974463982,0.00188277,92946.0,92927.0,0.3]
[1740974464477,0.00188277,92946.0,92937.0,0.002]
[1740974464649,0.0766,92939.0,92927.0,0.3]
[1740974464892,0.00188304,92938.0,92924.0,0.03209153]
[1740974465372,0.02294884,92938.0,92924.0,0.33209153]
[1740974465560,0.0210658,92938.0,92924.0,0.33209153]
[1740974465766,0.0210658,92938.0,92927.0,0.003]
[1740974465971,0.193679,92937.0,92927.0,0.003]
[1740974466176,0.270173,92928.0,92927.0,0.003]
[1740974466425,0.14528,92924.0,92923.0,0.0001704]
[1740974466833,0.22376331,92924.0,92923.0,0.0001704]
[1740974468738,0.07848331,92924.0,92923.0,0.0011704]
[1740974469040,0.10017909,92924.0,92923.0,0.0011704]
[1740974469616,0.0483,92928.0,92927.0,0.145275]
[1740974469940,0.07020075,92928.0,92927.0,0.145275]
[1740974470182,0.07020075,92928.0,92924.0,0.14528]
[1740974470354,0.07020075,92928.0,92923.0,0.1948784]
[1740974470355,0.07020075,92928.0,92925.0,0.193704]
[1740974470531,0.07020075,92928.0,92924.0,0.145278]
[1740974470735,0.07020075,92928.0,92923.0,0.0011704]
[1740974470954,0.001,92928.0,92927.0,0.145275]
[1740974471132,0.0454,92938.0,92923.0,0.0011704]
[1740974471336,0.0454,92938.0,92937.0,0.145259]
[1740974471540,0.0454,92938.0,92932.0,0.193688]
[1740974471745,0.0454,92938.0,92932.0,0.192688]
[1740974472141,0.0454,92938.0,92929.0,0.145271]
[1740974472341,0.0454,92938.0,92923.0,0.3001704]
[1740974472542,0.02147524,92942.0,92923.0,0.3794704]
[1740974472741,0.0454,92947.0,92923.0,0.3794704]
[1740974472742,0.0454,92947.0,92946.0,0.145245]
[1740974472956,0.0454,92947.0,92934.0,0.193684]
[1740974473155,0.0454,92947.0,92932.0,0.003]
[1740974473356,0.0454,92947.0,92923.0,0.0001704]
[1740974473357,0.0454,92947.0,92941.0,0.145252]
[1740974473711,0.0454,92947.0,92938.0,0.145257]
[1740974473846,0.0454,92947.0,92936.0,0.14526]
[1740974474047,0.0454,92947.0,92937.0,0.145259]
[1740974474323,0.04544023,92947.0,92937.0,0.145259]
[1740974474455,0.04544023,92947.0,92924.0,0.3]
[1740974474672,0.04644023,92947.0,92923.0,0.3001704]
[1740974474894,0.04644023,92947.0,92938.0,0.145256]
[1740974475069,0.04544023,92947.0,92923.0,0.3001704]
[1740974475268,0.04644023,92947.0,92923.0,0.3031704]
[1740974475474,0.04644023,92947.0,92942.0,0.14525]
[1740974475710,0.04544023,92947.0,92942.0,0.14525]
[1740974475915,0.04644023,92947.0,92942.0,0.14525]
[1740974476230,0.04644023,92947.0,92938.0,0.145256]
[1740974476432,0.04644023,92947.0,92936.0,0.19368]
[1740974476626,0.04644023,92947.0,92932.0,0.3]
[1740974476827,0.04644023,92947.0,92942.0,0.003]
[1740974477169,0.04544023,92947.0,92942.0,0.003]
[1740974478057,0.04544023,92947.0,92942.0,0.004]
[1740974478264,0.04544023,92947.0,92942.0,0.001]
[1740974478467,0.04544023,92947.0,92940.0,0.15616729]
[1740974478691,0.04544023,92947.0,92942.0,0.002]
[1740974479561,0.04544023,92947.0,92942.0,0.005]
[1740974480102,0.14525,92943.0,92942.0,0.005]
[1740974480666,0.14713298,92943.0,92942.0,0.005]
[1740974481065,0.14713298,92943.0,92942.0,0.003]
[1740974481285,0.14713298,92943.0,92942.0,0.005]
[1740974481411,0.22323303,92943.0,92942.0,0.005]
[1740974481626,0.22323303,92943.0,92942.0,0.003]
[1740974482027,0.26735,92943.0,92942.0,0.003]
[1740974482228,0.193672,92941.0,92916.0,0.09637527]
[1740974482513,0.0761,92929.0,92918.0,0.01088218]
[1740974482717,0.00188327,92928.0,92918.0,0.01088218]
[1740974483998,0.145277,92926.0,92912.0,0.3]
[1740974484162,0.145277,92926.0,92923.0,0.0031704]
[1740974484371,0.145275,92927.0,92923.0,0.0031704]
[1740974484569,0.00188327,92928.0,92923.0,0.0031704]
[1740974484962,0.02111111,92925.0,92923.0,0.0051704]
[1740974485274,0.02111111,92925.0,92923.0,0.0031704]
[1740974485502,0.02111111,92925.0,92923.0,0.0021704]
[1740974485700,0.02111111,92925.0,92923.0,0.0051704]
[1740974485902,0.02111111,92925.0,92923.0,0.0031704]
[1740974486725,0.0761,92929.0,92928.0,0.145273]
[1740974486936,0.0815,92938.0,92937.0,0.145259]
[1740974487134,0.0815,92938.0,92923.0,0.0061704]
[1740974487618,0.10351345,92938.0,92923.0,0.0061704]
[1740974487968,0.10351345,92938.0,92923.0,0.3031704]
[1740974488114,0.00188303,92937.0,92923.0,0.3031704]
[1740974488328,0.00188303,92937.0,92923.0,0.0031704]
[1740974488537,0.0787,92924.0,92923.0,0.0001704]
[1740974490400,0.0797,92924.0,92923.0,0.0031704]
[1740974491141,0.0797,92924.0,92923.0,0.0051704]
[1740974491357,0.22498,92924.0,92923.0,0.0051704]
[1740974491558,0.0797,92924.0,92923.0,0.0051704]
[1740974491776,0.22498,92924.0,92923.0,0.0051704]
[1740974492748,0.0797,92924.0,92923.0,0.0051704]
[1740974493023,0.0797,92924.0,92923.0,0.1504514]
[1740974493621,0.001,92924.0,92923.0,0.1504514]
[1740974495454,0.0781,92948.0,92923.0,0.0001704]
[1740974495455,0.17643357,92944.0,92923.0,0.0001704]
[1740974495584,0.17643357,92944.0,92939.0,0.144256]
[1740974495958,0.17643357,92944.0,92931.0,0.145267]
[1740974496086,0.193667,92943.0,92928.0,0.145272]
[1740974496288,0.193667,92943.0,92925.0,0.03009153]
[1740974496490,0.0753,92938.0,92925.0,0.03009153]
[1740974496716,0.25173357,92944.0,92939.0,0.145256]
[1740974497440,0.09641357,92944.0,92935.0,0.193682]
[1740974497639,0.09641357,92944.0,92937.0,0.145259]
[1740974497812,0.09641357,92944.0,92939.0,0.003]
[1740974498032,0.09641357,92944.0,92941.0,0.193669]
[1740974498380,0.09641357,92944.0,92943.0,0.14525]
[1740974499414,0.09641357,92944.0,92943.0,0.003]
[1740974500055,0.09641357,92944.0,92943.0,0.14825]
[1740974500204,0.09641357,92944.0,92943.0,0.003]
[1740974501500,0.09641357,92944.0,92943.0,0.005]
[1740974501882,0.09641357,92944.0,92939.0,0.15519586]
[1740974502082,0.09641357,92944.0,92935.0,0.193681]
[1740974502278,0.09641357,92944.0,92711.0,0.10352]
[1740974502279,0.09641357,92944.0,92857.0,0.05397047]
[1740974502482,0.09641357,92944.0,92939.0,0.145256]
[1740974503214,0.09641357,92944.0,92939.0,0.147256]
[1740974503574,0.09641357,92944.0,92940.0,0.03228307]
[1740974503782,0.00188291,92943.0,92940.0,0.03228307]
[1740974503989,0.145252,92942.0,92940.0,0.03228307]
[1740974504194,0.00188291,92943.0,92940.0,0.03228307]
[1740974504426,0.145253,92941.0,92940.0,0.03228307]
[1740974504827,0.00146553,92942.0,92939.0,0.002]
[1740974505056,0.145253,92941.0,92939.0,0.002]
[1740974505232,0.145255,92940.0,92939.0,0.002]
[1740974505820,0.145257,92939.0,92929.0,0.01101568]
[1740974506018,0.00188295,92941.0,92940.0,0.002]
[1740974506385,0.14526,92937.0,92926.0,0.09637527]
[1740974506522,0.00188297,92941.0,92927.0,0.01094678]
[1740974506706,0.00188295,92943.0,92939.0,0.002]
[1740974506912,0.00188295,92943.0,92932.0,0.193689]
[1740974507429,0.00188295,92943.0,92940.0,0.002]
[1740974507625,0.00188295,92943.0,92939.0,0.004]
[1740974507834,0.00188295,92943.0,92933.0,0.193687]
[1740974508013,0.0003408,92941.0,92933.0,0.193687]
[1740974508868,0.0003408,92941.0,92933.0,0.145265]
[1740974509173,0.0003408,92941.0,92939.0,0.001]
[1740974509384,0.0003408,92941.0,92940.0,0.145255]
[1740974510580,0.0003408,92941.0,92940.0,0.147255]
[1740974510962,0.0003408,92941.0,92940.0,0.03428562]
[1740974511340,0.0003408,92941.0,92940.0,0.03728562]
[1740974512212,0.0003408,92941.0,92940.0,0.005]
[1740974513268,0.1455938,92941.0,92940.0,0.005]
[1740974513434,0.2205938,92941.0,92940.0,0.005]
[1740974513636,0.0753408,92941.0,92940.0,0.005]
[1740974515496,0.07722383,92941.0,92940.0,0.005]
[1740974515931,0.07722383,92941.0,92940.0,0.003]
[1740974516315,0.07722383,92941.0,92940.0,0.004]
[1740974516569,0.07722383,92941.0,92940.0,0.001]
[1740974516769,0.07722383,92941.0,92940.0,0.003]
[1740974516982,0.22247683,92941.0,92940.0,0.003]
[1740974517562,0.26967683,92941.0,92940.0,0.003]
[1740974517877,0.2677938,92941.0,92940.0,0.001]
[1740974518741,0.1225408,92941.0,92940.0,0.001]
[1740974518938,0.1225408,92941.0,92923.0,0.0001704]
[1740974518939,0.12442395,92941.0,92931.0,0.145267]
[1740974519378,0.12542395,92941.0,92929.0,0.145271]
[1740974519539,0.12442395,92941.0,92923.0,0.1938774]
[1740974519745,0.12442395,92941.0,92923.0,0.0001704]
[1740974519941,0.12542395,92941.0,92931.0,0.145267]
[1740974520171,0.12442395,92941.0,92923.0,0.0001704]
[1740974520370,0.12442395,92941.0,92932.0,0.193688]
[1740974520568,0.12442395,92941.0,92929.0,0.001]
[1740974520884,0.12442395,92941.0,92925.0,0.193704]
[1740974521205,0.193673,92940.0,92931.0,0.002]
[1740974521486,0.145267,92932.0,92931.0,0.002]
[1740974521823,0.145267,92932.0,92926.0,0.03230561]
[1740974521824,0.193694,92930.0,92926.0,0.03230561]
[1740974522022,0.00188327,92929.0,92926.0,0.03230561]
[1740974522595,0.00188327,92929.0,92923.0,0.0001704]
[1740974522921,0.00188327,92931.0,92923.0,0.0001704]
[1740974523062,0.00188327,92931.0,92926.0,0.001]
[1740974523687,0.0832,92937.0,92931.0,0.002]
[1740974524000,0.0832,92937.0,92933.0,0.145265]
[1740974524203,0.0832,92937.0,92930.0,0.193692]
[1740974524411,0.0018831,92936.0,92929.0,0.145271]
[1740974524782,0.0018831,92936.0,92930.0,0.145269]
[1740974524986,0.0018831,92936.0,92928.0,0.193697]
[1740974525507,0.02205747,92935.0,92928.0,0.193697]
[1740974525735,0.02205747,92935.0,92930.0,0.145269]
[1740974526504,0.02205747,92935.0,92912.0,0.03228307]
[1740974526669,0.02205747,92935.0,92934.0,0.145264]
[1740974527594,0.0832,92937.0,92934.0,0.145264]
[1740974527793,0.0475408,92941.0,92940.0,0.145255]
[1740974528358,0.0475408,92941.0,92930.0,0.001]
[1740974528556,0.0475408,92941.0,92939.0,0.145255]
[1740974528986,0.0475408,92941.0,92940.0,0.145255]
[1740974529208,0.0003408,92941.0,92940.0,0.145255]
[1740974529445,0.02175769,92941.0,92940.0,0.145255]
[1740974529825,0.02175769,92941.0,92939.0,0.001]
[1740974530050,0.02175769,92941.0,92940.0,0.145255]
[1740974530251,0.02175769,92941.0,92940.0,0.149255]
[1740974530386,0.02175769,92941.0,92940.0,0.16000231]
[1740974530829,0.02175769,92941.0,92940.0,0.15700231]
[1740974531230,0.02175769,92941.0,92940.0,0.01174731]
[1740974531439,0.02175769,92941.0,92940.0,0.15700231]
[1740974531862,0.02175769,92941.0,92940.0,0.16000231]
[1740974532302,0.02175769,92941.0,92940.0,0.15900231]
[1740974532623,0.0003408,92941.0,92940.0,0.15900231]
[1740974533449,0.0003408,92941.0,92940.0,0.16000231]
[1740974534041,0.0003408,92941.0,92940.0,0.004]
[1740974534333,0.0003408,92941.0,92940.0,0.149255]
[1740974534981,0.0003408,92941.0,92940.0,0.004]
[1740974537676,0.0003408,92941.0,92940.0,0.149255]
[1740974538642,0.0003408,92941.0,92940.0,0.449255]
[1740974539689,0.0003408,92941.0,92940.0,0.445255]
[1740974540024,0.0013408,92941.0,92940.0,0.452255]
[1740974540238,0.0023408,92941.0,92940.0,0.881948]
[1740974540529,0.0003408,92941.0,92940.0,0.946148]
[1740974540703,0.0013408,92941.0,92940.0,0.951148]
[1740974540886,0.0023408,92941.0,92940.0,0.958148]
[1740974541487,0.0013408,92941.0,92940.0,0.953148]
[1740974542170,0.0003408,92941.0,92940.0,0.946148]
[1740974543443,0.0003408,92941.0,92940.0,0.952148]
[1740974543670,0.0013408,92941.0,92940.0,0.952148]
[1740974544071,0.0013408,92941.0,92940.0,0.959148]
[1740974544072,0.0023408,92941.0,92940.0,0.959148]
[1740974545536,0.0023408,92941.0,92940.0,0.9593183]
[1740974545919,0.0023408,92941.0,92940.0,0.5346253]
[1740974546107,0.0023408,92941.0,92940.0,1.9100403]
[1740974546312,0.0023408,92941.0,92940.0,1.0817003]
[1740974547880,0.002247,92941.0,92940.0,1.0817003]
[1740974548631,0.002247,92941.0,92940.0,1.19053732]
[1740974548829,0.002247,92941.0,92940.0,1.24053732]
[1740974549033,4.4e-07,92949.0,92945.0,0.05]
[1740974549346,4.4e-07,92949.0,92948.0,0.495242]
[1740974549506,4.4e-07,92949.0,92948.0,0.68007902]
[1740974549721,4.4e-07,92949.0,92948.0,0.72977902]
[1740974549920,0.00013054,92957.0,92956.0,0.44523]
[1740974550129,0.00013054,92957.0,92956.0,4.01459402]
[1740974550323,0.00013054,92957.0,92956.0,3.57846602]
[1740974550859,0.00013054,92957.0,92956.0,3.90275828]
[1740974550860,5.4e-07,92957.0,92956.0,3.90275828]
[1740974551054,5.4e-07,92957.0,92956.0,0.92735928]
[1740974551351,0.00100054,92957.0,92956.0,0.93335928]
[1740974551875,5.4e-07,92957.0,92956.0,0.92735928]
[1740974552172,5.4e-07,92957.0,92956.0,0.93435928]
[1740974552553,5.4e-07,92957.0,92956.0,0.92735928]
[1740974552763,5.4e-07,92957.0,92956.0,0.96650301]
[1740974553218,5.4e-07,92957.0,92956.0,0.9815006]
[1740974553421,5.4e-07,92957.0,92956.0,0.9745006]
[1740974553825,5.4e-07,92957.0,92956.0,0.94935687]
[1740974559682,5.4e-07,92957.0,92956.0,0.96944232]
[1740974560749,6.14004973,92950.0,92920.0,0.2276073]
[1740974560946,5.88770198,92950.0,92949.0,4.19449802]
[1740974561152,5.7421482,92950.0,92949.0,4.38815202]
[1740974561357,5.70980345,92950.0,92949.0,4.38815202]
[1740974561598,5.70980345,92950.0,92949.0,4.40984241]
[1740974561795,5.70980345,92950.0,92949.0,3.96796441]
[1740974561991,5.6774587,92950.0,92949.0,3.96796441]
[1740974562280,5.6774587,92950.0,92949.0,3.97496441]
[1740974562476,5.64511395,92950.0,92949.0,3.97496441]
[1740974563026,5.6137692,92950.0,92949.0,4.27496441]
[1740974563364,5.6137692,92950.0,92949.0,4.28287431]
[1740974563582,5.58242445,92950.0,92949.0,4.28987431]
[1740974563777,4.77900975,92950.0,92949.0,4.31962012]
[1740974564083,4.37725246,92950.0,92949.0,4.33922012]
[1740974564288,4.37725246,92950.0,92949.0,4.36682742]
[1740974564580,4.29180808,92950.0,92949.0,4.36682742]
[1740974564726,4.29180808,92950.0,92949.0,5.06682742]
[1740974564936,4.2594637,92950.0,92949.0,5.06682742]
[1740974565382,4.2594637,92950.0,92949.0,5.05682742]
[1740974565604,4.22711932,92950.0,92949.0,5.38392742]
[1740974565798,4.18655484,92950.0,92949.0,5.38392742]
[1740974565960,4.15421046,92950.0,92949.0,5.38392742]
[1740974566564,4.12186608,92950.0,92949.0,5.35632012]
[1740974566762,4.12186608,92950.0,92949.0,5.38392742]
[1740974566987,4.0895217,92950.0,92949.0,5.38392742]
[1740974567299,4.08624745,92950.0,92949.0,5.38392742]
[1740974567575,4.05390307,92950.0,92949.0,5.38392742]
[1740974567843,4.05390307,92950.0,92949.0,5.46982012]
[1740974567980,4.02155869,92950.0,92949.0,5.44007431]
[1740974568684,3.98921431,92950.0,92949.0,5.44007431]
[1740974569818,3.85861431,92950.0,92949.0,5.44007431]
[1740974571003,3.85861431,92950.0,92949.0,5.46982012]
[1740974571004,3.84213219,92950.0,92949.0,5.46982012]
[1740974571705,3.84213219,92950.0,92949.0,5.47240731]
[1740974573290,3.84213219,92950.0,92949.0,5.49254893]
[1740974574040,3.77772219,92950.0,92949.0,5.49254893]
[1740974574243,3.6530222,92950.0,92949.0,5.49254893]
[1740974574623,2.62097737,92950.0,92949.0,5.49254893]
[1740974574806,2.49031137,92950.0,92949.0,5.49254893]
[1740974575006,2.43097153,92950.0,92949.0,5.52229474]
[1740974575325,1.99076353,92950.0,92949.0,5.52229474]
[1740974575488,1.22004026,92950.0,92949.0,5.52229474]
[1740974575687,1.17671826,92950.0,92949.0,5.52229474]
[1740974575890,0.63572083,92950.0,92949.0,5.49417274]
[1740974576106,0.50465759,92950.0,92949.0,5.49417274]
[1740974576308,0.0001703,92956.0,92949.0,5.49417274]
[1740974576509,0.0001703,92956.0,92955.0,0.445231]
[1740974576687,0.0001703,92956.0,92955.0,4.67170902]
[1740974576906,0.0001703,92956.0,92955.0,4.03080802]
[1740974577112,0.0001703,92956.0,92955.0,3.98007502]
[1740974577598,0.0001703,92956.0,92955.0,4.32731664]
[1740974577803,0.0011703,92956.0,92955.0,4.33431664]
[1740974578178,0.0011703,92956.0,92955.0,4.35391664]
[1740974578298,0.0001703,92956.0,92955.0,4.34691664]
[1740974578497,0.0011703,92956.0,92955.0,4.35391664]
[1740974579327,0.0011703,92956.0,92955.0,4.36091664]
[1740974579533,0.0011703,92956.0,92955.0,4.35391664]
[1740974579730,0.0001703,92956.0,92955.0,4.34691664]
[1740974580040,0.0011703,92956.0,92955.0,4.36091664]
[1740974580500,0.0011703,92956.0,92955.0,4.34131664]
[1740974582205,0.0011703,92956.0,92955.0,1.69118964]
[1740974582417,0.0011703,92956.0,92955.0,6.39799264]
[1740974582618,0.0011703,92956.0,92955.0,6.42214064]
[1740974583031,0.0011703,92956.0,92955.0,5.88744264]